bitfinex/quotes_ETHUSD_20230403
["timestamp","ask_amount","ask_price","bid_price","bid_amount"]
[1680518413263,1.41121,1811.5,1811.3,0.57750955]
[1680518413465,1.218,1811.4,1811.3,0.57750955]
[1680518414341,1.218,1811.4,1811.2,1.44373442]
[1680518414647,1.209,1811.3,1811.2,0.57750955]
[1680518418141,1.74520424,1811.3,1811.2,0.57750955]
[1680518418382,1.74520424,1811.3,1811.1,0.57750955]
[1680518422790,1.74520424,1811.3,1811.0,19.53673442]
[1680518422984,0.53620424,1811.3,1811.1,0.57750955]
[1680518423989,0.53620424,1811.3,1811.0,19.53673442]
[1680518424187,1.40222,1811.4,1811.0,19.53673442]
[1680518424362,1.54532315,1811.4,1811.0,18.67050955]
[1680518426152,0.33632315,1811.4,1811.0,18.67050955]
[1680518426378,0.33632315,1811.4,1811.0,6.59520955]
[1680518426559,1.62801565,1811.5,1811.0,6.87128955]
[1680518426560,1.43480565,1811.5,1811.0,6.87128955]
[1680518426770,1.43480565,1811.5,1811.0,6.59520955]
[1680518427452,1.218,1811.3,1811.0,0.57950955]
[1680518427677,0.42324,1811.2,1810.9,0.57750955]
[1680518427892,0.54504,1811.2,1810.8,18.12230955]
[1680518428187,0.54504,1811.2,1810.8,6.74020955]
[1680518428555,0.54504,1811.2,1810.8,6.73420955]
[1680518430189,0.31504,1811.2,1810.8,6.73420955]
[1680518431565,0.11871371,1811.2,1810.8,6.74020955]
[1680518431776,1.43483565,1811.3,1810.8,8.65119599]
[1680518432938,1.82129565,1811.3,1810.8,8.65119599]
[1680518434392,1.43483565,1811.3,1810.8,8.65119599]
[1680518435168,0.30852075,1811.2,1810.8,8.65119599]
[1680518435372,0.50176075,1811.2,1810.9,0.8651196]
[1680518436386,0.88824075,1811.2,1810.8,8.07368644]
[1680518437111,1.207,1811.1,1810.8,6.1627]
[1680518437414,1.40026,1811.1,1810.8,6.1627]
[1680518437714,1.78676,1811.1,1810.8,6.1627]
[1680518438712,1.21,1811.0,1810.8,0.008]
[1680518438919,1.21,1811.0,1810.7,0.004]
[1680518439079,1.21,1811.0,1810.6,18.78750955]
[1680518439985,1.21,1811.0,1810.6,19.06365955]
[1680518440581,1.21,1811.0,1810.6,21.08035899]
[1680518440780,1.52852075,1811.2,1810.6,21.94658386]
[1680518441084,1.52652075,1811.2,1810.6,22.49888386]
[1680518441830,0.50176075,1811.2,1810.6,22.49888386]
[1680518442609,0.50176075,1811.2,1810.7,0.57750955]
[1680518442816,1.00372639,1811.2,1810.7,0.85363955]
[1680518443176,1.00372639,1811.2,1810.7,0.57750955]
[1680518447230,1.69172639,1811.2,1810.7,0.57750955]
[1680518448731,2.78776728,1811.1,1810.7,0.57750955]
[1680518448931,1.376,1810.8,1810.7,0.006]
[1680518449138,2.18584,1810.8,1810.5,0.1]
[1680518449429,0.8813,1810.7,1810.5,0.1]
[1680518449629,0.08813,1810.6,1810.5,0.1]
[1680518450007,0.28143,1810.6,1810.5,0.1]
[1680518450331,0.58659642,1810.6,1810.5,0.1]
[1680518450632,1.20320642,1810.6,1810.5,0.1]
[1680518451030,0.62329642,1810.6,1810.5,0.1]
[1680518451199,0.53516642,1810.6,1810.5,0.1]
[1680518451840,0.72846642,1810.6,1810.5,0.1]
[1680518452344,1.97006207,1810.6,1810.5,0.1]
[1680518452960,1.77676207,1810.6,1810.5,0.1]
[1680518453255,1.54676207,1810.6,1810.5,0.1]
[1680518454216,1.75942728,1810.6,1810.5,0.1]
[1680518454416,1.95272728,1810.6,1810.5,0.1]
[1680518454722,1.75942728,1810.6,1810.5,0.1]
[1680518454920,1.75553661,1810.6,1810.5,0.1]
[1680518455145,1.5428714,1810.6,1810.5,0.1]
[1680518456742,1.7361714,1810.6,1810.5,0.1]
[1680518456917,1.5428714,1810.6,1810.5,0.1]
[1680518457422,1.7361714,1810.6,1810.5,0.1]
[1680518457623,1.94844754,1810.6,1810.5,0.1]
[1680518458234,1.5428714,1810.6,1810.5,0.1]
[1680518458735,1.51927575,1810.6,1810.5,0.1]
[1680518460754,0.30127575,1810.6,1810.5,0.1]
[1680518461163,0.19329,1810.7,1810.5,0.1]
[1680518462279,0.3016309,1810.6,1810.5,0.1]
[1680518463329,0.19329,1810.7,1810.5,0.1]
[1680518464070,0.47310144,1810.7,1810.5,0.1]
[1680518464287,0.35591527,1810.6,1810.5,0.1]
[1680518465287,0.1933,1810.6,1810.5,0.1]
[1680518465491,0.47311144,1810.7,1810.5,0.1]
[1680518465874,0.85970144,1810.7,1810.5,0.1]
[1680518466193,0.08597014,1810.6,1810.5,0.1]
[1680518466521,0.27927014,1810.6,1810.5,0.1]
[1680518467930,3.06703742,1810.6,1810.5,0.1]
[1680518468228,3.29703742,1810.6,1810.5,0.1]
[1680518477481,3.68364742,1810.6,1810.5,0.1]
[1680518478531,4.90164742,1810.6,1810.5,0.1]
[1680518480322,11.06318293,1810.6,1810.5,0.1]
[1680518480614,11.06518293,1810.6,1810.5,0.1]
[1680518484016,11.62229042,1810.6,1810.5,0.1]
[1680518484342,12.61954481,1810.6,1810.5,0.1]
[1680518494152,13.84054481,1810.6,1810.5,0.09612678]
[1680518494359,16.84054481,1810.6,1810.5,0.09612678]
[1680518495134,16.93622359,1810.6,1810.5,0.05180535]
[1680518496146,16.93622359,1810.6,1810.5,0.0078005]
[1680518497263,16.93622359,1810.6,1810.3,0.1]
[1680518497434,8.25,1810.4,1810.3,0.1]
[1680518497637,12.62303728,1810.4,1810.3,0.1]
[1680518498239,13.05864092,1810.4,1810.3,0.1]
[1680518500777,13.08223657,1810.4,1810.3,0.1]
[1680518501853,11.86123657,1810.4,1810.3,0.1]
[1680518502052,12.41982474,1810.4,1810.3,0.1]
[1680518505232,12.5745958,1810.4,1810.3,0.1]
[1680518507074,13.57185019,1810.4,1810.3,0.1]
[1680518507234,16.57185019,1810.4,1810.3,0.1]
[1680518510937,15.35685019,1810.4,1810.3,0.1]
[1680518511770,15.33325454,1810.4,1810.3,0.1]
[1680518512978,16.02225454,1810.4,1810.3,0.1]
[1680518515464,16.04585019,1810.4,1810.3,0.1]
[1680518516776,15.0485958,1810.4,1810.3,0.1]
[1680518517281,16.04585019,1810.4,1810.3,0.1]
[1680518517584,16.73485019,1810.4,1810.2,0.0355941]
[1680518517750,14.7742523,1810.3,1810.2,0.0355941]
[1680518518081,14.7762523,1810.3,1810.2,0.0355941]
[1680518518286,14.7762523,1810.3,1810.1,0.1]
[1680518518287,0.02359565,1810.2,1810.1,0.1]
[1680518518494,10.66578293,1810.2,1810.1,0.1]
[1680518518648,10.89778293,1810.2,1810.1,0.1]
[1680518518848,11.49005559,1810.2,1810.1,0.1]
[1680518519262,12.00784892,1810.2,1810.1,0.1]
[1680518520265,4.70986327,1810.2,1810.1,0.1]
[1680518520470,4.11559061,1810.2,1810.1,0.1]
[1680518520799,10.70298061,1810.2,1810.1,0.1]
[1680518521002,10.70498061,1810.2,1810.1,0.1]
[1680518539481,11.39398061,1810.2,1810.1,0.1]
[1680518539783,11.97159009,1810.2,1810.1,0.1]
[1680518540813,11.97159009,1810.2,1810.1,0.09639397]
[1680518542122,11.28259009,1810.2,1810.1,0.09639397]
[1680518543326,14.57389875,1810.2,1810.1,0.09639397]
[1680518543901,15.576369,1810.2,1810.1,0.09639397]
[1680518544112,17.08279252,1810.2,1810.1,0.09639397]
[1680518544318,18.63059707,1810.2,1810.1,0.09639397]
[1680518544718,18.90689536,1810.2,1810.1,0.09639397]
[1680518544918,18.91211122,1810.2,1810.1,0.09639397]
[1680518545122,21.12211122,1810.2,1810.1,0.09639397]
[1680518545318,0.99725439,1810.0,1809.9,0.004]
[1680518545521,19.51197375,1810.0,1809.9,0.004]
[1680518545749,17.85657375,1810.0,1809.8,0.1]
[1680518546035,14.49943114,1809.9,1809.8,0.1]
[1680518546210,14.50330523,1809.9,1809.8,0.1]
[1680518546736,14.21370512,1809.9,1809.8,0.1]
[1680518548505,13.63590728,1809.9,1809.8,0.1]
[1680518548711,13.66057921,1809.9,1809.8,0.1]
[1680518548908,13.68417486,1809.9,1809.8,0.1]
[1680518549836,13.68617486,1809.9,1809.8,0.1]
[1680518550137,13.68417486,1809.9,1809.8,0.1]
[1680518550515,14.2619727,1809.9,1809.8,0.1]
[1680518550833,13.68417486,1809.9,1809.8,0.1]
[1680518551216,14.2619727,1809.9,1809.8,0.1]
[1680518554328,15.93605496,1809.9,1809.8,0.1]
[1680518554637,15.35825712,1809.9,1809.8,0.1]
[1680518555342,15.92399079,1809.9,1809.8,0.1]
[1680518558170,14.67839514,1809.9,1809.8,0.1]
[1680518561875,14.70199079,1809.9,1809.8,0.1]
[1680518562646,18.13399079,1809.9,1809.7,0.1]
[1680518562852,9.81576728,1809.8,1809.7,0.1]
[1680518563184,18.18654951,1809.8,1809.7,0.1]
[1680518563364,15.97654951,1809.8,1809.7,0.1]
[1680518563679,15.97654951,1809.8,1809.7,0.09754557]
[1680518564477,14.97929512,1809.8,1809.7,0.09754557]
[1680518564845,15.00374,1809.8,1809.7,0.09510108]
[1680518565054,14.42594216,1809.8,1809.7,0.09510108]
[1680518565643,14.42594216,1809.8,1809.7,0.09266673]
[1680518566272,13.21194216,1809.8,1809.7,0.09266673]
[1680518567643,13.21194216,1809.8,1809.7,0.09024252]
[1680518568978,13.21315802,1809.8,1809.7,0.09024252]
[1680518569183,13.21194216,1809.8,1809.7,0.09024252]
[1680518569782,13.23553781,1809.8,1809.7,0.08784849]
[1680518570143,13.79735777,1809.8,1809.7,0.03166649]
[1680518570669,13.79735777,1809.8,1809.7,0.02928243]
[1680518571249,13.79735777,1809.8,1809.6,0.1]
[1680518571450,11.60176728,1809.7,1809.6,0.1]
[1680518571755,14.11798728,1809.7,1809.6,0.1]
[1680518572177,14.61511907,1809.7,1809.6,0.1]
[1680518572350,14.63871472,1809.7,1809.6,0.1]
[1680518572551,14.66142721,1809.7,1809.6,0.1]
[1680518572795,14.86871472,1809.7,1809.6,0.1]
[1680518575572,14.89142615,1809.7,1809.6,0.1]
[1680518580162,16.11342615,1809.7,1809.6,0.1]
[1680518584367,16.69122399,1809.7,1809.6,0.1]
[1680518586293,15.46922399,1809.7,1809.6,0.1]
[1680518586495,16.33662194,1809.7,1809.6,0.1]
[1680518588323,15.7588241,1809.7,1809.6,0.1]
[1680518588600,16.04796279,1809.7,1809.6,0.1]
[1680518589177,16.91555667,1809.7,1809.6,0.1]
[1680518589969,16.04796279,1809.7,1809.6,0.1]
[1680518590307,16.91556782,1809.7,1809.6,0.1]
[1680518590684,16.04796279,1809.7,1809.6,0.1]
[1680518591593,16.04796279,1809.7,1809.6,0.09774941]
[1680518592900,16.02436714,1809.7,1809.6,0.09774941]
[1680518593223,10.28261446,1809.7,1809.6,0.09774941]
[1680518594706,10.51261446,1809.7,1809.6,0.09774941]
[1680518595896,9.9338105,1809.7,1809.6,0.09774941]
[1680518596099,4.69861446,1809.7,1809.6,0.09774941]
[1680518596297,3.5010105,1809.7,1809.6,0.09774941]
[1680518597706,3.7310105,1809.7,1809.6,0.09774941]
[1680518598106,4.1178105,1809.7,1809.6,0.09774941]
[1680518604354,11.69879155,1809.7,1809.6,0.09774941]
[1680518604521,11.70079155,1809.7,1809.6,0.09774941]
[1680518607155,12.27959551,1809.7,1809.6,0.09774941]
[1680518608933,11.70079155,1809.7,1809.6,0.09774941]
[1680518609252,11.27599551,1809.7,1809.6,0.09774941]
[1680518609431,10.28261446,1809.7,1809.6,0.09774941]
[1680518610779,10.51261446,1809.7,1809.6,0.09774941]
[1680518612232,9.9338105,1809.7,1809.6,0.09774941]
[1680518612566,10.51261446,1809.7,1809.6,0.09774941]
[1680518613027,9.9338105,1809.7,1809.6,0.09774941]
[1680518613231,11.73041607,1809.7,1809.6,0.09774941]
[1680518613425,11.15161211,1809.7,1809.6,0.09774941]
[1680518613935,11.73041607,1809.7,1809.6,0.09774941]
[1680518614726,11.73041607,1809.7,1809.6,0.09547048]
[1680518618337,9.9338105,1809.7,1809.6,0.09547048]
[1680518631266,10.51261446,1809.7,1809.6,0.09547048]
[1680518633905,10.51783032,1809.7,1809.6,0.09547048]
[1680518634071,10.51261446,1809.7,1809.6,0.09547048]
[1680518642522,10.13103032,1809.7,1809.6,0.09547048]
[1680518642815,10.12581446,1809.7,1809.6,0.09547048]
[1680518642976,9.89581446,1809.7,1809.6,0.09547048]
[1680518644212,10.28261446,1809.7,1809.6,0.09547048]
[1680518644521,10.51261446,1809.7,1809.6,0.09547048]
[1680518646016,10.51783032,1809.7,1809.6,0.09547048]
[1680518646522,10.51261446,1809.7,1809.6,0.09547048]
[1680518649125,11.74475051,1809.7,1809.6,0.09547048]
[1680518650726,12.61295645,1809.7,1809.6,0.09547048]
[1680518653424,12.03415249,1809.7,1809.6,0.09547048]
[1680518653632,12.61387433,1809.7,1809.6,0.09547048]
[1680518653927,12.03415249,1809.7,1809.6,0.09547048]
[1680518654226,12.61390885,1809.7,1809.6,0.09547048]
[1680518654527,12.03415249,1809.7,1809.6,0.09286349]
[1680518656150,16.01244777,1809.7,1809.6,0.09286349]
[1680518656434,17.46246674,1809.7,1809.6,0.09286349]
[1680518656607,16.01426984,1809.7,1809.6,0.09286349]
[1680518657344,17.46246674,1809.7,1809.6,0.09286349]
[1680518657505,16.01426984,1809.7,1809.6,0.09286349]
[1680518658056,17.46246674,1809.7,1809.6,0.09286349]
[1680518658202,16.01426984,1809.7,1809.6,0.09286349]
[1680518661116,17.46246674,1809.7,1809.6,0.09286349]
[1680518661313,16.01392597,1809.7,1809.6,0.09286349]
[1680518661539,17.46212287,1809.7,1809.6,0.09286349]
[1680518662044,16.30835931,1809.7,1809.6,0.09286349]
[1680518662215,16.18179087,1809.7,1809.6,0.09286349]
[1680518663742,14.73359397,1809.7,1809.6,0.09286349]
[1680518664315,16.18120252,1809.7,1809.6,0.09286349]
[1680518664809,17.14128495,1809.7,1809.6,0.00086349]
[1680518665347,16.86498666,1809.7,1809.6,0.00086349]
[1680518668224,18.02254382,1809.7,1809.6,0.00086349]
[1680518668549,18.02256285,1809.7,1809.6,0.00086349]
[1680518668750,16.17598666,1809.7,1809.6,0.00086349]
[1680518669422,14.9669325,1809.7,1809.6,0.00086349]
[1680518669624,13.44542934,1809.7,1809.6,0.00086349]
[1680518670034,14.0242521,1809.7,1809.6,0.00086349]
[1680518670247,13.44542934,1809.7,1809.6,0.00086349]
[1680518671114,14.02426695,1809.7,1809.6,0.00086349]
[1680518671323,13.67542934,1809.7,1809.6,0.00086349]
[1680518674165,13.6806452,1809.7,1809.6,0.00086349]
[1680518674344,13.67542934,1809.7,1809.6,0.00086349]
[1680518680243,14.92509474,1809.7,1809.6,0.00086349]
[1680518680442,15.2151489,1809.7,1809.6,0.00086349]
[1680518681357,16.37292844,1809.7,1809.6,0.00086349]
[1680518681741,15.2151489,1809.7,1809.6,0.00086349]
[1680518682170,15.9041489,1809.7,1809.6,0.00086349]
[1680518682376,17.06188613,1809.7,1809.6,0.00086349]
[1680518683371,15.9041489,1809.7,1809.6,0.00086349]
[1680518683581,17.06190033,1809.7,1809.6,0.00086349]
[1680518684075,15.9041489,1809.7,1809.6,0.00086349]
[1680518684474,17.06184752,1809.7,1809.6,0.00086349]
[1680518684886,16.37784752,1809.7,1809.6,0.00086349]
[1680518685086,15.2201489,1809.7,1809.6,0.00086349]
[1680518685383,16.37784465,1809.7,1809.6,0.00086349]
[1680518685687,0.50242365,1809.6,1809.5,0.1]
[1680518685990,16.93338584,1809.6,1809.5,0.1]
[1680518686195,18.46491847,1809.6,1809.5,0.06281631]
[1680518686483,17.30722272,1809.6,1809.5,0.06281631]
[1680518686986,17.30722272,1809.6,1809.5,0.06080805]
[1680518687369,17.30722272,1809.6,1809.5,0.0239962]
[1680518687566,17.32722157,1809.6,1809.5,0.0239962]
[1680518688257,17.32722157,1809.6,1809.4,0.1]
[1680518688481,9.98835121,1809.5,1809.4,0.1]
[1680518688789,10.57061121,1809.5,1809.4,0.1]
[1680518689366,10.89568209,1809.5,1809.4,0.06384854]
[1680518690269,11.76397017,1809.5,1809.4,0.02805859]
[1680518690671,14.78396448,1809.5,1809.4,0.02805859]
[1680518690890,14.21032726,1809.5,1809.4,0.02805859]
[1680518691155,14.20832726,1809.5,1809.3,0.1]
[1680518691379,7.81366682,1809.4,1809.3,0.1]
[1680518691599,12.1874541,1809.4,1809.3,0.1]
[1680518692372,12.50301351,1809.4,1809.3,0.1]
[1680518692662,12.52660916,1809.4,1809.3,0.1]
[1680518694664,12.54659893,1809.4,1809.3,0.1]
[1680518695291,13.09952394,1809.4,1809.3,0.1]
[1680518697199,13.1047398,1809.4,1809.3,0.1]
[1680518697405,13.09952394,1809.4,1809.3,0.1]
[1680518700306,13.38897793,1809.4,1809.3,0.1]
[1680518700601,13.96814218,1809.4,1809.3,0.1]
[1680518700809,13.38897793,1809.4,1809.3,0.1]
[1680518705197,13.57604852,1809.4,1809.3,0.1]
[1680518705402,12.7343372,1809.4,1809.3,0.1]
[1680518707013,1.10114043,1809.4,1809.3,0.789]
[1680518707334,1.09914043,1809.4,1809.3,0.789]
[1680518707505,0.57291478,1809.4,1809.3,0.789]
[1680518707894,0.76634478,1809.4,1809.3,0.9466]
[1680518708309,0.76634478,1809.4,1809.3,0.789]
[1680518709608,0.80291478,1809.4,1809.3,0.789]
[1680518710809,0.24998977,1809.4,1809.3,0.789]
[1680518711418,0.44341977,1809.4,1809.3,0.789]
[1680518712199,0.24998977,1809.4,1809.3,0.1]
[1680518712421,0.24998977,1809.4,1809.3,0.1893]
[1680518712903,0.01998977,1809.4,1809.3,0.1893]
[1680518722045,0.01998977,1809.4,1809.3,0.8783]
[1680518727752,0.01998977,1809.4,1809.3,0.789]
[1680518729753,0.21341977,1809.4,1809.3,0.789]
[1680518729957,3.61804705,1809.4,1809.3,0.1]
[1680518732044,9.43204705,1809.4,1809.3,0.1]
[1680518732243,10.8243011,1809.4,1809.3,0.09606067]
[1680518732842,10.8263011,1809.4,1809.3,0.09606067]
[1680518733159,10.82951696,1809.4,1809.3,0.09606067]
[1680518733522,10.84403407,1809.4,1809.3,0.09606067]
[1680518735950,4.61957842,1809.4,1809.3,0.09606067]
[1680518736152,3.59680172,1809.4,1809.3,0.09606067]
[1680518736669,3.75366172,1809.4,1809.3,0.09606067]
[1680518737950,3.98366172,1809.4,1809.3,0.09606067]
[1680518742432,4.75739172,1809.4,1809.3,0.09606067]
[1680518747875,3.40337172,1809.4,1809.3,0.09606067]
[1680518748087,0.61560444,1809.4,1809.3,0.09606067]
[1680518748378,0.80903444,1809.4,1809.3,0.09606067]
[1680518749734,0.61560444,1809.4,1809.3,0.09606067]
[1680518749934,0.80903444,1809.4,1809.3,0.09606067]
[1680518754979,0.61560444,1809.4,1809.3,0.09606067]
[1680518755176,0.80903444,1809.4,1809.3,0.09606067]
[1680518757672,3.98366172,1809.4,1809.3,0.09606067]
[1680518757987,4.38202789,1809.4,1809.3,0.09606067]
[1680518758889,3.98366172,1809.4,1809.3,0.09606067]
[1680518764266,4.14749016,1809.4,1809.3,0.09606067]
[1680518772913,4.14749016,1809.4,1809.3,0.09382926]
[1680518781613,0.97286288,1809.4,1809.3,0.09382926]
[1680518782471,0.77943288,1809.4,1809.3,0.09382926]
[1680518783012,0.97286288,1809.4,1809.3,0.09382926]
[1680518783179,0.77943288,1809.4,1809.3,0.09382926]
[1680518783512,0.97286288,1809.4,1809.3,0.09382926]
[1680518791107,4.14749016,1809.4,1809.3,0.09382926]
[1680518791419,4.62015132,1809.4,1809.3,0.09382926]
[1680518794512,5.19927273,1809.4,1809.3,0.09382926]
[1680518794688,5.22486838,1809.4,1809.3,0.09382926]
[1680518797079,14.03886838,1809.4,1809.3,0.09382926]
[1680518797279,14.03886838,1809.4,1809.3,0.09058457]
[1680518797280,9.20303505,1809.4,1809.3,0.09058457]
[1680518797685,9.74617818,1809.4,1809.3,0.09058457]
[1680518798818,10.32535011,1809.4,1809.3,0.09058457]
[1680518799022,9.74617818,1809.4,1809.3,0.09058457]
[1680518799210,10.32535349,1809.4,1809.3,0.09058457]
[1680518799584,8.76806541,1809.4,1809.3,0.09058457]
[1680518799892,8.29540425,1809.4,1809.3,0.09058457]
[1680518800110,4.72866547,1809.4,1809.3,0.09058457]
[1680518800319,4.72666547,1809.4,1809.3,0.09058457]
[1680518800710,4.14749016,1809.4,1809.3,0.09058457]
[1680518802587,3.76063016,1809.4,1809.3,0.09058457]
[1680518803229,3.56720016,1809.4,1809.3,0.09058457]
[1680518803824,0.77943288,1809.4,1809.3,0.09058457]
[1680518804181,0.97286288,1809.4,1809.3,0.09058457]
[1680518804422,0.81837465,1809.4,1809.3,0.09058457]
[1680518817121,3.99300193,1809.4,1809.3,0.09058457]
[1680518817308,4.52759165,1809.4,1809.3,0.09058457]
[1680518821741,10.3651873,1809.4,1809.3,0.09058457]
[1680518821950,15.61347538,1809.4,1809.3,0.08705159]
[1680518824834,14.92447538,1809.4,1809.3,0.08705159]
[1680518825034,11.92447538,1809.4,1809.3,0.08705159]
[1680518825235,5.82139913,1809.4,1809.3,0.08705159]
[1680518826753,6.36880414,1809.4,1809.3,0.08705159]
[1680518828935,5.10880348,1809.4,1809.3,0.08705159]
[1680518829164,3.99500193,1809.4,1809.3,0.08705159]
[1680518829351,3.99300193,1809.4,1809.3,0.08705159]
[1680518830946,3.60614193,1809.4,1809.3,0.08705159]
[1680518832174,0.39494465,1809.4,1809.3,0.08705159]
[1680518833543,0.62494465,1809.4,1809.3,0.08705159]
[1680518842475,0.62494465,1809.4,1809.3,0.17465675]
[1680518844652,0.39494465,1809.4,1809.3,0.17465675]
[1680518847781,0.39494465,1809.4,1809.3,0.86365675]
[1680518847986,0.39099195,1809.4,1809.3,0.86365675]
[1680518848176,0.39673574,1809.4,1809.3,0.86365675]
[1680518862791,0.39673574,1809.4,1809.3,0.17465675]
[1680518862986,0.39673574,1809.4,1809.3,0.08705159]
[1680518864824,0.59016574,1809.4,1809.3,0.08705159]
[1680518866519,0.97702574,1809.4,1809.3,0.08705159]
[1680518867236,5.16638867,1809.4,1809.3,0.08705159]
[1680518867527,5.39838867,1809.4,1809.3,0.08705159]
[1680518867683,6.01559954,1809.4,1809.3,0.08705159]
[1680518868090,6.51559954,1809.4,1809.3,0.08705159]
[1680518869803,6.01559954,1809.4,1809.3,0.08387001]
[1680518870218,6.55911149,1809.4,1809.3,0.08387001]
[1680518871029,12.37311149,1809.4,1809.3,0.08387001]
[1680518874534,12.95232332,1809.4,1809.3,0.08387001]
[1680518876396,12.37311149,1809.4,1809.3,0.08387001]
[1680518877235,5.18111149,1809.4,1809.3,0.08387001]
[1680518877397,4.54030497,1809.4,1809.3,0.08387001]
[1680518877596,4.53830497,1809.4,1809.3,0.08387001]
[1680518877798,5.22330497,1809.4,1809.3,0.08387001]
[1680518878017,5.22530497,1809.4,1809.3,0.08387001]
[1680518883151,4.15344497,1809.4,1809.3,0.08387001]
[1680518883334,3.41450302,1809.4,1809.3,0.08387001]
[1680518883706,3.60793302,1809.4,1809.3,0.08387001]
[1680518883926,0.62673574,1809.4,1809.3,0.08387001]
[1680518886252,0.39673574,1809.4,1809.3,0.08387001]
[1680518887458,2.70521586,1809.8,1809.3,0.22365701]
[1680518887660,2.7,1809.8,1809.4,6.66783955]
[1680518887871,2.7,1809.8,1809.7,1.222]
[1680518888074,2.7,1809.8,1809.7,1.3442]
[1680518888359,2.7,1809.8,1809.7,0.1222]
[1680518888564,2.7,1809.8,1809.5,7.038]
[1680518888923,2.7,1809.8,1809.5,7.31431]
[1680518889223,2.7,1809.8,1809.5,7.038]
[1680518890027,2.7,1809.8,1809.5,7.31431]
[1680518890221,2.7,1809.8,1809.6,0.731431]
[1680518891040,2.7,1809.8,1809.5,1.49831]
[1680518891240,2.7,1809.8,1809.4,2.222]
[1680518891431,2.7,1809.8,1809.4,2.49033]
[1680518891631,2.7,1809.8,1809.4,2.214]
[1680518891831,0.01843601,1809.7,1809.4,2.214]
[1680518892026,0.01843601,1809.7,1809.5,0.2214]
[1680518892729,2.7,1809.8,1809.5,0.2214]
[1680518893779,0.01843601,1809.7,1809.5,0.2214]
[1680518901383,0.01843601,1809.7,1809.5,0.49771]
[1680518902668,0.01843601,1809.7,1809.5,0.2214]
[1680518903184,0.01843601,1809.7,1809.5,0.49771]
[1680518903701,0.01843601,1809.7,1809.5,0.2214]
[1680518904787,0.01843601,1809.7,1809.5,0.49771]
[1680518905201,0.01843601,1809.7,1809.5,0.2214]
[1680518907399,0.01843601,1809.7,1809.4,1.27633]
[1680518909001,0.01606759,1809.7,1809.4,1.27633]
[1680518909598,0.01606759,1809.7,1809.4,3.05099]
[1680518909987,0.01606759,1809.7,1809.4,8.86499]
[1680518910183,0.01606759,1809.7,1809.4,8.87099]
[1680518910409,0.01606759,1809.7,1809.5,0.887099]
[1680518910577,0.01606759,1809.7,1809.6,2.0509]
[1680518910777,2.7,1809.8,1809.6,7.8649]
[1680518911003,2.7,1809.8,1809.6,7.8669]
[1680518911609,2.7,1809.8,1809.6,7.3143]
[1680518911808,2.7,1809.8,1809.7,0.73143]
[1680518912409,2.7,1809.8,1809.6,1.222]
[1680518912804,2.71833156,1809.8,1809.6,1.222]
[1680518914694,2.71833156,1809.8,1809.4,2.23]
[1680518914898,2.71833156,1809.8,1809.6,0.27629]
[1680518915821,2.71833156,1809.8,1809.6,6.64289]
[1680518916021,2.71833156,1809.8,1809.7,0.664289]
[1680518916327,2.71833156,1809.8,1809.7,0.940569]
[1680518917829,2.71833156,1809.8,1809.7,1.493139]
[1680518918341,2.71833156,1809.8,1809.7,0.940569]
[1680518920340,2.46833156,1809.8,1809.7,0.940569]
[1680518922708,2.46833156,1809.8,1809.7,0.664289]
[1680518923949,2.46833156,1809.8,1809.5,19.1872]
[1680518925210,2.46833156,1809.8,1809.6,5.814]
[1680518925416,2.46833156,1809.8,1809.6,0.2823]
[1680518925637,2.46833156,1809.8,1809.6,0.2763]
[1680518927049,2.46833156,1809.8,1809.6,6.0903]
[1680518927212,2.46833156,1809.8,1809.7,0.60903]
[1680518927850,2.46833156,1809.8,1809.5,20.31733955]
[1680518928052,0.01833156,1809.8,1809.5,20.31733955]
[1680518928252,0.01833156,1809.8,1809.5,20.31133955]
[1680518928450,0.01833156,1809.8,1809.5,13.70800955]
[1680518928655,0.01833156,1809.8,1809.5,12.46113]
[1680518928893,0.01833156,1809.8,1809.6,1.246113]
[1680518929012,0.01833156,1809.8,1809.6,1.522403]
[1680518930882,0.01833156,1809.8,1809.6,1.246113]
[1680518931029,0.01833156,1809.8,1809.6,1.522403]
[1680518932862,0.01833156,1809.8,1809.6,2.09991255]
[1680518935664,0.01833156,1809.8,1809.6,1.82362255]
[1680518935968,0.01833156,1809.8,1809.6,0.57750955]
[1680518936486,0.01833156,1809.8,1809.6,0.85380955]
[1680518937191,2.51833156,1809.8,1809.6,0.57750955]
[1680518937362,2.51833156,1809.8,1809.6,0.85379955]
[1680518940391,2.51833156,1809.8,1809.6,0.57750955]
[1680518952046,2.51833156,1809.8,1809.5,13.08193442]
[1680518952346,2.51833156,1809.8,1809.5,12.21570955]
[1680518952746,2.51833156,1809.8,1809.6,0.57750955]
[1680518953317,2.51833156,1809.8,1809.5,13.08193442]
[1680518953513,2.51833156,1809.8,1809.6,0.57750955]
[1680518956353,2.51833156,1809.8,1809.6,1.88570299]
[1680518960261,2.51833156,1809.8,1809.6,0.57750955]
[1680518962880,2.51833156,1809.8,1809.6,0.32127359]
[1680518965185,2.51833156,1809.8,1809.5,12.49842487]
[1680518968846,2.51833156,1809.8,1809.5,12.77473487]
[1680518969046,2.51833156,1809.8,1809.5,12.49842487]
[1680518969255,2.51833156,1809.8,1809.6,1.24984249]
[1680518970467,2.51833156,1809.8,1809.6,1.52614249]
[1680518970789,2.51833156,1809.8,1809.6,1.24984249]
[1680518970951,2.51833156,1809.8,1809.6,2.11606736]
[1680518972650,2.51833156,1809.8,1809.6,2.69454972]
[1680518972852,2.51833156,1809.8,1809.7,0.26945497]
[1680518973857,2.51833156,1809.8,1809.7,0.84793733]
[1680518974083,2.51833156,1809.8,1809.7,0.26945497]
[1680518974284,2.51833156,1809.8,1809.7,0.84793733]
[1680518974793,2.51833156,1809.8,1809.7,0.26945497]
[1680518980495,2.51833156,1809.8,1809.7,1.12421733]
[1680518980669,2.51833156,1809.8,1809.7,0.84793733]
[1680518984234,2.51833156,1809.8,1809.7,1.12421733]
[1680518984518,2.51833156,1809.8,1809.7,0.84793733]
[1680518984699,2.51833156,1809.8,1809.7,1.12421733]
[1680518985730,2.51833156,1809.8,1809.7,0.84793733]
[1680518987718,2.51525376,1809.8,1809.7,0.84793733]
[1680518988028,2.51525376,1809.8,1809.7,1.12421733]
[1680518988688,2.51525376,1809.8,1809.7,0.84793733]
[1680518989829,2.51525376,1809.8,1809.7,1.12421733]
[1680518990024,2.51525376,1809.8,1809.7,6.93821733]
[1680518990251,2.51525376,1809.8,1809.7,6.94021733]